fUST/lending_fUST_20240721
["ID","MTS","AMOUNT","RATE_DAILY","PERIOD"]
[332740197,1721496642942,-500.0,0.00013698,2]
[332740198,1721496642952,-530.16,0.00013698,2]
[332740199,1721496642961,-709.79,0.00013698,2]
[332740200,1721496642971,-500.0,0.00013698,2]
[332740201,1721496642980,-500.0,0.00013698,2]
[332740202,1721496642991,-500.0,0.00013698,2]
[332740203,1721496643003,-2560.67,0.00013698,2]
[332740204,1721496643013,-1351.37,0.00013698,2]
[332740205,1721496643022,-4982.28,0.00013698,2]
[332740206,1721496643032,-500.0,0.00013698,2]
[332740207,1721496643041,-500.0,0.00013698,2]
[332740208,1721496643050,-6101.97,0.00013698,2]
[332740209,1721496643060,-1127.84,0.00013698,2]
[332740210,1721496643070,-2039.09,0.00013698,2]
[332740211,1721496643079,-500.0,0.00013698,2]
[332740212,1721496643089,-653.61,0.00013698,2]
[332740213,1721496643099,-1354.6,0.00013698,2]
[332740214,1721496643108,-500.0,0.00013698,2]
[332740215,1721496643117,-500.0,0.00013698,2]
[332740216,1721496643127,-539.75121852,0.00013698,2]
[332740217,1721496643136,-500.0,0.00013698,2]
[332740218,1721496643145,-814.58,0.00013698,2]
[332740219,1721496643155,-3687.47,0.00013698,2]
[332740220,1721496643165,-500.0,0.00013698,2]
[332740221,1721496643174,-500.0,0.00013698,2]
[332740222,1721496643183,-6147.63,0.00013698,2]
[332740223,1721496643194,-501.22838301,0.00013698,2]
[332740224,1721496643203,-622.99,0.00013698,2]
[332740225,1721496643212,-500.0,0.00013698,2]
[332740226,1721496643222,-500.0,0.00013698,2]
[332740227,1721496643231,-2577.42,0.00013698,2]
[332740228,1721496643240,-500.0,0.00013698,2]
[332740229,1721496643249,-501.29419541,0.00013698,2]
[332740230,1721496643258,-1798.23,0.00013698,2]
[332740231,1721496643267,-500.0,0.00013698,2]
[332740232,1721496643276,-1002.74,0.00013698,2]
[332740233,1721496643285,-500.0,0.00013698,2]
[332740234,1721496643293,-1585.46,0.00013698,2]
[332740235,1721496643302,-500.08985855,0.00013698,2]
[332740236,1721496643312,-500.0,0.00013698,2]
[332740237,1721496643322,-8339.41,0.00013698,2]
[332740238,1721496643331,-500.0,0.00013698,2]
[332740239,1721496643339,-503.42,0.00013698,2]
[332740240,1721496643349,-503.42,0.00013698,2]
[332740241,1721496643359,-503.42,0.00013698,2]
[332740242,1721496643368,-503.42,0.00013698,2]
[332740243,1721496643377,-503.42,0.00013698,2]
[332740244,1721496643387,-503.42,0.00013698,2]
[332740245,1721496643395,-503.42,0.00013698,2]
[332740246,1721496643404,-503.42,0.00013698,2]
[332740247,1721496643413,-501.52214706,0.00013698,2]
[332740248,1721496643422,-503.42,0.00013698,2]
[332740249,1721496643431,-503.42,0.00013698,2]
[332740250,1721496643440,-500.0,0.00013698,2]
[332740251,1721496643449,-21642.2,0.00013698,2]
[332740252,1721496643460,-10351.79,0.00013698,2]
[332740253,1721496643470,-500.0,0.00013698,2]
[332740254,1721496643479,-2372.21,0.00013698,2]
[332740255,1721496643488,-500.0,0.00013698,2]
[332740256,1721496643498,-2406.18,0.00013698,2]
[332740257,1721496643507,-500.0,0.00013698,2]
[332740258,1721496643517,-857.46,0.00013698,2]
[332740259,1721496643526,-500.0,0.00013698,2]
[332740260,1721496643536,-710.94,0.00013698,2]
[332740261,1721496643545,-3168.77,0.00013698,2]
[332740262,1721496643554,-4527.59,0.00013698,2]
[332740263,1721496643564,-506.666072,0.00013698,2]
[332740264,1721496643573,-465.25885834,0.00013698,2]
[332740265,1721496643583,-500.0,0.00013698,2]
[332740266,1721496643592,-500.0,0.00013698,2]
[332740267,1721496643601,-191.05,0.00013698,2]
[332740268,1721496643611,-500.0,0.00013698,2]
[332740269,1721496643620,-729.38,0.00013698,2]
[332740270,1721496643629,-500.0,0.00013698,2]
[332740271,1721496643638,-500.0,0.00013698,2]
[332740272,1721496643648,-823.18,0.00013698,2]
[332740273,1721496643657,-500.0,0.00013698,2]
[332740274,1721496643667,-500.0,0.00013698,2]
[332740275,1721496643676,-505.7857432,0.00013698,2]
[332740276,1721496643685,-1686.66,0.00013698,2]
[332740277,1721496643694,-2370.86,0.00013698,2]
[332740278,1721496643704,-500.0,0.00013698,2]
[332740279,1721496643714,-3409.98,0.00013698,2]
[332740280,1721496643723,-500.0,0.00013698,2]
[332740281,1721496643732,-3379.4,0.00013698,2]
[332740282,1721496643741,-1365.63,0.00013698,2]
[332740283,1721496643751,-1323.73,0.00013698,2]
[332740284,1721496643760,-500.0,0.00013698,2]
[332740285,1721496643769,-500.0,0.00013698,2]
[332740286,1721496643778,-500.0,0.00013698,2]
[332740287,1721496643788,-500.0,0.00013698,2]
[332740288,1721496643797,-500.0,0.00013698,2]
[332740289,1721496643806,-500.0,0.00013698,2]
[332740290,1721496643816,-549.12,0.00013698,2]
[332740291,1721496643825,-2073.65,0.00013698,2]
[332740292,1721496643834,-500.0,0.00013698,2]
[332740293,1721496643843,-565.69560734,0.00013698,2]
[332740294,1721496643852,-500.0,0.00013698,2]
[332740295,1721496643861,-500.0,0.00013698,2]
[332740296,1721496643875,-574.86,0.00013698,2]
[332740297,1721496643884,-500.0,0.00013698,2]
[332740298,1721496643893,-2060.39,0.00013698,2]
[332740299,1721496643903,-6166.2,0.00013698,2]
[332740300,1721496643912,-500.0,0.00013698,2]
[332740301,1721496643922,-679.13,0.00013698,2]
[332740302,1721496643931,-3526.35,0.00013698,2]
[332740303,1721496643940,-699.13,0.00013698,2]
[332740304,1721496643950,-500.0,0.00013698,2]
[332740305,1721496643960,-500.0,0.00013698,2]
[332740306,1721496643970,-2945.32,0.00013698,2]
[332740307,1721496643981,-500.81614324,0.00013698,2]
[332740308,1721496643990,-250.0,0.00013698,2]
[332740309,1721496643999,-1420.36,0.00013698,2]
[332740310,1721496644009,-2380.43,0.00013698,2]
[332740311,1721496644019,-517.43758687,0.00013698,2]
[332740312,1721496644028,-3630.42,0.00013698,2]
[332740313,1721496644038,-514.86963877,0.00013698,2]
[332740314,1721496644048,-500.0,0.00013698,2]
[332740315,1721496644058,-500.0,0.00013698,2]
[332740316,1721496644069,-500.0,0.00013698,2]
[332740317,1721496644079,-500.0,0.00013698,2]
[332740318,1721496644089,-500.0,0.00013698,2]
[332740319,1721496644098,-500.0,0.00013698,2]
[332740320,1721496644107,-500.0,0.00013698,2]
[332740321,1721496644117,-500.0,0.00013698,2]
[332740322,1721496644126,-3171.01,0.00013698,2]
[332740323,1721496644135,-500.0,0.00013698,2]
[332740324,1721496644313,-500.0,0.00013698,2]
[332740325,1721496644323,-500.0,0.00013698,2]
[332740326,1721496644332,-500.0,0.00013698,2]
[332740327,1721496644342,-219.09698425,0.00013698,2]
[332740328,1721496644352,-1011.12,0.00013698,2]
[332740329,1721496644363,-570.19,0.00013698,2]
[332740330,1721496644372,-500.0,0.00013698,2]
[332740331,1721496644381,-500.0,0.00013698,2]
[332740332,1721496644391,-500.0,0.00013698,2]
[332740333,1721496644400,-539.10656031,0.00013698,2]
[332740334,1721496644409,-500.0,0.00013698,2]
[332740335,1721496644419,-1289.19,0.00013698,2]
[332740336,1721496644429,-500.0,0.00013698,2]
[332740337,1721496644438,-500.0,0.00013698,2]
[332740338,1721496644447,-500.0,0.00013698,2]
[332740339,1721496644456,-1035.25,0.00013698,2]
[332740340,1721496644466,-3550.22,0.00013698,2]
[332740341,1721496644475,-13595.83,0.00013698,2]
[332740342,1721496644484,-833.28,0.00013698,2]
[332740343,1721496644494,-500.0,0.00013698,2]
[332740344,1721496644503,-533.97409384,0.00013698,2]
[332740345,1721496644512,-643.83,0.00013698,2]
[332740346,1721496644521,-501.15558744,0.00013698,2]
[332740347,1721496644531,-11800.57,0.00013698,2]
[332740348,1721496644540,-500.0,0.00013698,2]
[332740349,1721496644550,-500.0,0.00013698,2]
[332740350,1721496644559,-3226.79,0.00013698,2]
[332740351,1721496644570,-500.0,0.00013698,2]
[332740352,1721496644579,-500.0,0.00013698,2]
[332740353,1721496644588,-500.0,0.00013698,2]
[332740354,1721496644597,-500.0,0.00013698,2]
[332740355,1721496644607,-500.0,0.00013698,2]
[332740356,1721496644616,-500.0,0.00013698,2]
[332740357,1721496644625,-500.0,0.00013698,2]
[332740358,1721496644634,-1213.52,0.00013698,2]
[332740359,1721496644643,-500.0,0.00013698,2]
[332740360,1721496644652,-500.0,0.00013698,2]
[332740361,1721496644662,-500.0,0.00013698,2]
[332740362,1721496644671,-273.70156827,0.00013698,2]
[332740363,1721496644681,-500.0,0.00013698,2]
[332740364,1721496644690,-2828.28,0.00013698,2]
[332740365,1721496644699,-542.02,0.00013698,2]
[332740366,1721496644708,-2828.28,0.00013698,2]
[332740367,1721496644718,-2828.28,0.00013698,2]
[332740368,1721496644727,-2828.28,0.00013698,2]
[332740369,1721496644736,-2828.28,0.00013698,2]
[332740370,1721496644745,-502.06952761,0.00013698,2]
[332740371,1721496644754,-2828.28,0.00013698,2]
[332740372,1721496644764,-2828.28,0.00013698,2]
[332740373,1721496644773,-500.0,0.00013698,2]
[332740374,1721496644782,-2828.28,0.00013698,2]
[332740375,1721496644792,-2828.28,0.00013698,2]
[332740376,1721496644801,-2828.28,0.00013698,2]
[332740377,1721496644810,-500.0,0.00013698,2]
[332740378,1721496644819,-500.0,0.00013698,2]
[332740379,1721496644828,-500.0,0.00013698,2]
[332740380,1721496644837,-2828.28,0.00013698,2]
[332740381,1721496644846,-1319.68,0.00013698,2]
[332740382,1721496644857,-2828.28,0.00013698,2]
[332740383,1721496644868,-2828.28,0.00013698,2]
[332740384,1721496644877,-2828.28,0.00013698,2]
[332740385,1721496644886,-2828.28,0.00013698,2]
[332740386,1721496644895,-2828.28,0.00013698,2]
[332740387,1721496644906,-16891.84,0.00013698,2]
[332740388,1721496644915,-500.0,0.00013698,2]
[332740389,1721496644925,-2828.28,0.00013698,2]
[332740390,1721496644937,-1425.22,0.00013698,2]
[332740391,1721496644947,-2828.28,0.00013698,2]
[332740392,1721496644956,-2828.28,0.00013698,2]
[332740393,1721496644965,-2828.28,0.00013698,2]
[332740394,1721496644975,-1045.3,0.00013698,2]
[332740395,1721496644985,-2828.28,0.00013698,2]
[332740396,1721496644994,-2828.28,0.00013698,2]
[332740397,1721496645003,-2828.28,0.00013698,2]
[332740398,1721496645012,-2828.44919494,0.00013698,2]
[332740399,1721496645021,-1808.36,0.00013698,2]
[332740400,1721496645031,-502.54970071,0.00013698,2]
[332740401,1721496645040,-1115.51,0.00013698,2]
[332740402,1721496645050,-518.04290527,0.00013698,2]
[332740403,1721496645059,-1656.01,0.00013698,2]
[332740404,1721496645070,-901.36,0.00013698,2]
[332740405,1721496645081,-500.0,0.00013698,2]
[332740406,1721496645091,-1769.08,0.00013698,2]
[332740407,1721496645100,-512.07655604,0.00013698,2]
[332740408,1721496645110,-2580.08,0.00013698,2]
[332740409,1721496645119,-509.82043443,0.00013698,2]
[332740410,1721496645128,-848.62,0.00013698,2]
[332740411,1721496645138,-500.0,0.00013698,2]
[332740412,1721496645147,-500.0,0.00013698,2]
[332740413,1721496645157,-10345.82,0.00013698,2]
[332740414,1721496645166,-511.87,0.00013698,2]
[332740415,1721496645176,-2932.08,0.00013698,2]
[332740416,1721496645185,-500.0,0.00013698,2]
[332740417,1721496645195,-2979.42,0.00013698,2]
[332740418,1721496645204,-2979.42,0.00013698,2]
[332740419,1721496645213,-2979.42,0.00013698,2]
[332740420,1721496645223,-2979.42,0.00013698,2]
[332740421,1721496645232,-2979.42,0.00013698,2]
[332740422,1721496645241,-2979.42,0.00013698,2]
[332740423,1721496645251,-2979.42,0.00013698,2]
[332740424,1721496645260,-539.98,0.00013698,2]
[332740425,1721496645270,-2979.42,0.00013698,2]
[332740426,1721496645279,-500.0,0.00013698,2]
[332740427,1721496645289,-2979.42,0.00013698,2]
[332740428,1721496645298,-2979.42,0.00013698,2]
[332740429,1721496645308,-2979.42,0.00013698,2]
[332740430,1721496645319,-2979.42,0.00013698,2]
[332740431,1721496645328,-2979.42,0.00013698,2]
[332740432,1721496645337,-2979.42,0.00013698,2]
[332740433,1721496645350,-2979.42,0.00013698,2]
[332740434,1721496645359,-2979.42,0.00013698,2]
[332740435,1721496645369,-2979.42,0.00013698,2]
[332740436,1721496645378,-500.0,0.00013698,2]
[332740437,1721496645387,-345.18233406,0.00013698,2]
[332740438,1721496645396,-2979.42,0.00013698,2]
[332740439,1721496645405,-2979.42,0.00013698,2]
[332740440,1721496645414,-2979.42,0.00013698,2]
[332740441,1721496645424,-46359.09,0.00013698,2]
[332740442,1721496645435,-2979.42,0.00013698,2]
[332740443,1721496645446,-2979.42,0.00013698,2]
[332740444,1721496645457,-2979.42,0.00013698,2]
[332740445,1721496645467,-2979.61423838,0.00013698,2]
[332740446,1721496645479,-568.38256445,0.00013698,2]
[332740447,1721496645490,-535.32,0.00013698,2]
[332740448,1721496645499,-508.09294628,0.00013698,2]
[332740449,1721496645511,-855.71,0.00013698,2]
[332740450,1721496645522,-500.0,0.00013698,2]
[332740451,1721496645532,-500.0,0.00013698,2]
[332740452,1721496645542,-630.75,0.00013698,2]
[332740453,1721496645553,-3262.98,0.00013698,2]
[332740454,1721496645563,-500.0,0.00013698,2]
[332740457,1721496645574,-538.07,0.00013698,2]
[332740459,1721496645583,-500.0,0.00013698,2]
[332740461,1721496645593,-213.58377767,0.00013698,2]
[332740464,1721496645603,-2704.37,0.00013698,2]
[332740467,1721496645612,-500.0,0.00013698,2]
[332740469,1721496645622,-894.49,0.00013698,2]
[332740472,1721496645632,-1967.52,0.00013698,2]
[332740473,1721496645642,-513.33275701,0.00013698,2]
[332740475,1721496645653,-3000.0,0.00013699,2]
[332740477,1721496645662,-938.966256,0.00013699,2]
[332740479,1721496645671,-5592.13592259,0.00013921,2]
[332740482,1721496645681,-503.42,0.00013961,2]
[332740484,1721496645690,-503.42,0.00013961,2]
[332740486,1721496645700,-503.42,0.00013971,2]
[332740489,1721496645709,-503.42,0.00013971,2]
[332740492,1721496645719,-503.42,0.00013971,2]
[332740494,1721496645728,-503.42,0.00013971,2]
[332740496,1721496645738,-503.42,0.00013971,2]
[332740497,1721496645748,-512.27304389,0.00013972,2]
[332740498,1721496645758,-630.86,0.00013972,2]
[332740500,1721496645768,-500.0,0.00013972,2]
[332740502,1721496645778,-500.0,0.00013972,2]
[332740504,1721496645787,-500.0,0.00013972,2]
[332740506,1721496645797,-951.81,0.00013972,2]
[332740507,1721496645807,-500.0,0.00013972,2]
[332740508,1721496645817,-500.0,0.00013972,2]
[332740509,1721496645826,-765.85,0.00013972,2]
[332740510,1721496645836,-500.0,0.00013972,2]
[332740511,1721496645847,-500.0,0.00013972,2]
[332740512,1721496645857,-587.48,0.00013972,2]
[332740513,1721496645868,-500.0,0.00013972,2]
[332740514,1721496645879,-500.0,0.00013972,2]
[332740515,1721496645889,-500.0,0.00013972,2]
[332740516,1721496645899,-823.6,0.00013972,2]
[332740517,1721496645909,-953.24,0.00013972,2]
[332740518,1721496645919,-676.97,0.00013972,2]
[332740519,1721496645929,-599.98,0.00013972,2]
[332740521,1721496645939,-500.0,0.00013972,2]
[332740522,1721496645950,-151.0,0.00013972,2]
[332740523,1721496645960,-500.0,0.00013972,2]
[332740524,1721496645971,-500.0,0.00013972,2]
[332740526,1721496645981,-545.40045561,0.00013972,2]
[332740528,1721496645992,-500.0,0.00013972,2]
[332740529,1721496646002,-500.0,0.00013972,2]
[332740530,1721496646012,-1167.05,0.00013972,2]
[332740531,1721496646021,-500.0,0.00013972,2]
[332740532,1721496646032,-500.0,0.00013972,2]
[332740533,1721496646041,-500.0,0.00013972,2]
[332740534,1721496646051,-502.09315046,0.00013972,2]
[332740535,1721496646061,-513.99920471,0.00013972,2]
[332740536,1721496646071,-500.0,0.00013972,2]
[332740537,1721496646083,-500.0,0.00013972,2]
[332740538,1721496646093,-572.79,0.00013972,2]
[332740539,1721496646103,-500.0,0.00013972,2]
[332740541,1721496646113,-708.76,0.00013972,2]
[332740542,1721496646122,-500.0,0.00013972,2]
[332740544,1721496646132,-500.0,0.00013972,2]
[332740546,1721496646142,-159.161879,0.00013972,2]
[332740547,1721496646152,-500.0,0.00013972,2]
[332740549,1721496646162,-500.0,0.00013972,2]
[332740550,1721496646172,-500.0,0.00013972,2]
[332740552,1721496646182,-500.0,0.00013972,2]
[332740554,1721496646192,-500.0,0.00013972,2]
[332740555,1721496646202,-500.0,0.00013972,2]
[332740557,1721496646211,-708.28,0.00013972,2]
[332740558,1721496646221,-541.33,0.00013972,2]
[332740560,1721496646230,-500.0,0.00013972,2]
[332740562,1721496646240,-500.0,0.00013972,2]
[332740563,1721496646250,-320.7322929,0.00013972,2]
[332740565,1721496646260,-500.0,0.00013972,2]
[332740566,1721496646269,-500.0,0.00013972,2]
[332740567,1721496646278,-500.0,0.00013972,2]
[332740568,1721496646288,-500.0,0.00013972,2]
[332740569,1721496646299,-150.0,0.00013972,2]
[332740570,1721496646308,-500.0,0.00013972,2]
[332740571,1721496646319,-637.53893582,0.00013972,2]
[332740572,1721496646330,-533.52163942,0.00013972,2]
[332740573,1721496646341,-500.0,0.00013972,2]
[332740574,1721496646350,-500.0,0.00013972,2]
[332740575,1721496646360,-500.0,0.00013972,2]
[332740576,1721496646370,-500.0,0.00013972,2]
[332740577,1721496646379,-916.65,0.00013972,2]
[332740578,1721496646389,-500.0,0.00013972,2]
[332740579,1721496646398,-877.73,0.00013972,2]
[332740580,1721496646408,-530.72,0.00013972,2]
[332740581,1721496646418,-500.0,0.00013972,2]
[332740582,1721496646427,-500.0,0.00013972,2]
[332740583,1721496646436,-662.6,0.00013972,2]
[332740584,1721496646446,-500.0,0.00013972,2]
[332740585,1721496646455,-182.45544952,0.00013972,2]
[332740586,1721496646465,-255.62,0.00013972,2]
[332740587,1721496646474,-500.0,0.00013972,2]
[332740588,1721496646483,-500.0,0.00013972,2]
[332740589,1721496646493,-500.0,0.00013972,2]
[332740590,1721496646502,-500.0,0.00013972,2]
[332740591,1721496646512,-352.51834169,0.00013972,2]
[332740592,1721496646521,-503.81,0.00013972,2]
[332740593,1721496646531,-694.98,0.00013972,2]
[332740594,1721496646540,-500.0,0.00013972,2]
[332740595,1721496646550,-500.0,0.00013972,2]
[332740596,1721496646560,-1331.09,0.00013972,2]
[332740597,1721496646569,-500.0,0.00013972,2]
[332740598,1721496646579,-585.07,0.00013972,2]
[332740599,1721496646588,-850.73,0.00013972,2]
[332740600,1721496646597,-541.56,0.00013972,2]
[332740601,1721496646607,-500.0,0.00013972,2]
[332740602,1721496646616,-519.12,0.00013972,2]
[332740603,1721496646625,-500.0,0.00013972,2]
[332740604,1721496646635,-1412.14,0.00013972,2]
[332740605,1721496646716,-2303.78,0.00013972,2]
[332740606,1721496646725,-571.25,0.00013972,2]
[332740607,1721496646735,-500.0,0.00013972,2]
[332740608,1721496646745,-617.06,0.00013972,2]
[332740609,1721496646754,-500.0,0.00013972,2]
[332740610,1721496646764,-2326.72,0.00013972,2]
[332740611,1721496646774,-645.64,0.00013972,2]
[332740612,1721496646783,-2993.58,0.00013972,2]
[332740613,1721496646793,-500.0,0.00013972,2]
[332740614,1721496646803,-500.0,0.00013972,2]
[332740615,1721496646812,-500.0,0.00013972,2]
[332740616,1721496646822,-500.0,0.00013972,2]
[332740617,1721496646831,-500.0,0.00013972,2]
[332740618,1721496646840,-500.0,0.00013972,2]
[332740619,1721496646850,-2225.17,0.00013972,2]
[332740620,1721496646863,-3334.11,0.00013972,2]
[332740621,1721496646872,-500.0,0.00013972,2]
[332740622,1721496646881,-500.0,0.00013972,2]
[332740623,1721496646890,-500.0,0.00013972,2]
[332740624,1721496646899,-660.59,0.00013972,2]
[332740625,1721496646909,-500.0,0.00013972,2]
[332740626,1721496646918,-582.80298837,0.00013972,2]
[332740627,1721496646928,-545.13,0.00013972,2]
[332740628,1721496646938,-1126.65,0.00013972,2]
[332740629,1721496646948,-500.0,0.00013972,2]
[332740630,1721496646957,-500.0,0.00013972,2]
[332740631,1721496646967,-1007.13,0.00013972,2]
[332740632,1721496646976,-788.19,0.00013972,2]
[332740633,1721496646986,-500.0,0.00013972,2]
[332740634,1721496646996,-1345.49,0.00013972,2]
[332740635,1721496647005,-500.0,0.00013972,2]
[332740636,1721496647014,-500.0,0.00013972,2]
[332740637,1721496647025,-500.0,0.00013972,2]
[332740638,1721496647035,-597.81,0.00013972,2]
[332740639,1721496647045,-518.45285291,0.00013972,2]
[332740640,1721496647055,-500.0,0.00013972,2]
[332740641,1721496647066,-619.68,0.00013972,2]
[332740642,1721496647075,-766.44,0.00013972,2]
[332740643,1721496647085,-500.0,0.00013972,2]
[332740644,1721496647094,-500.0,0.00013972,2]
[332740645,1721496647104,-500.0,0.00013972,2]
[332740646,1721496647113,-535.93,0.00013972,2]
[332740647,1721496647122,-500.0,0.00013972,2]
[332740648,1721496647132,-500.0,0.00013972,2]
[332740649,1721496647142,-500.0,0.00013972,2]
[332740650,1721496647151,-500.0,0.00013972,2]
[332740651,1721496647161,-500.0,0.00013972,2]
[332740652,1721496647171,-590.19,0.00013972,2]
[332740653,1721496647182,-500.0,0.00013972,2]
[332740654,1721496647192,-4278.72,0.00013972,2]
[332740655,1721496647202,-500.0,0.00013972,2]
[332740656,1721496647212,-500.0,0.00013972,2]
[332740657,1721496647223,-500.0,0.00013972,2]
[332740658,1721496647233,-500.0,0.00013972,2]
[332740659,1721496647243,-500.0,0.00013972,2]
[332740660,1721496647253,-500.0,0.00013972,2]
[332740661,1721496647265,-500.0,0.00013972,2]
[332740662,1721496647277,-500.0,0.00013972,2]
[332740663,1721496647287,-1407.61,0.00013972,2]
[332740664,1721496647297,-591.25,0.00013972,2]
[332740665,1721496647306,-1142.92,0.00013972,2]
[332740666,1721496647316,-949.77,0.00013972,2]
[332740667,1721496647325,-553.52,0.00013972,2]
[332740668,1721496647334,-500.0,0.00013972,2]
[332740669,1721496647344,-500.0,0.00013972,2]
[332740670,1721496647353,-500.0,0.00013972,2]
[332740671,1721496647362,-1972.47,0.00013972,2]
[332740672,1721496647371,-500.0,0.00013972,2]
[332740673,1721496647381,-691.03,0.00013972,2]
[332740674,1721496647392,-787.87,0.00013972,2]
[332740675,1721496647402,-500.0,0.00013972,2]
[332740676,1721496647412,-1286.36,0.00013972,2]
[332740677,1721496647423,-582.4,0.00013972,2]
[332740678,1721496647432,-500.0,0.00013972,2]
[332740679,1721496647442,-562.63316697,0.00013972,2]
[332740680,1721496647451,-157.78037707,0.00013972,2]
[332740681,1721496647462,-641.37526896,0.00013972,2]
[332740682,1721496647472,-500.0,0.00013972,2]
[332740683,1721496647483,-1912.39,0.00013972,2]
[332740684,1721496647494,-501.72983271,0.00013972,2]
[332740685,1721496647505,-601.67470916,0.00013972,2]
[332740686,1721496647515,-814.65,0.00013972,2]
[332740687,1721496647524,-500.0,0.00013972,2]
[332740688,1721496647534,-500.0,0.00013972,2]
[332740689,1721496647543,-500.0,0.00013972,2]
[332740690,1721496647553,-500.0,0.00013972,2]
[332740691,1721496647564,-500.0,0.00013972,2]
[332740692,1721496647574,-500.0,0.00013972,2]
[332740693,1721496647584,-502.63355936,0.00013972,2]
[332740694,1721496647594,-500.0,0.00013972,2]
[332740695,1721496647604,-538.82,0.00013972,2]
[332740696,1721496647615,-508.33268368,0.00013972,2]
[332740697,1721496647624,-500.0,0.00013972,2]
[332740698,1721496647633,-501.43123297,0.00013972,2]
[332740699,1721496647644,-370.99336645,0.00013972,2]
[332740700,1721496647654,-500.0,0.00013972,2]
[332740701,1721496647664,-500.0,0.00013972,2]
[332740702,1721496647674,-500.0,0.00013972,2]
[332740703,1721496647684,-893.95,0.00013972,2]
[332740704,1721496647694,-973.63,0.00013972,2]
[332740705,1721496647703,-500.0,0.00013972,2]
[332740706,1721496647713,-500.0,0.00013972,2]
[332740707,1721496647722,-500.0,0.00013972,2]
[332740708,1721496647731,-500.0,0.00013972,2]
[332740709,1721496647740,-507.40824382,0.00013972,2]
[332740710,1721496647749,-500.0,0.00013972,2]
[332740711,1721496647758,-500.0,0.00013972,2]
[332740712,1721496647767,-934.67,0.00013972,2]
[332740713,1721496647777,-500.0,0.00013972,2]
[332740714,1721496647787,-1025.57,0.00013972,2]
[332740715,1721496647796,-500.0,0.00013972,2]
[332740716,1721496647806,-500.0,0.00013972,2]
[332740717,1721496647816,-2847.46,0.00013972,2]
[332740718,1721496647825,-500.0,0.00013972,2]
[332740719,1721496647835,-2169.45,0.00013972,2]
[332740720,1721496647844,-627.3,0.00013972,2]
[332740721,1721496647854,-1085.8,0.00013972,2]
[332740722,1721496647867,-1869.16,0.00013972,2]
[332740723,1721496647876,-1046.78,0.00013972,2]
[332740724,1721496647885,-500.0,0.00013972,2]
[332740725,1721496647895,-2123.05,0.00013972,2]
[332740726,1721496647906,-500.0,0.00013972,2]
[332740727,1721496647916,-421.88467126,0.00013972,2]
[332740728,1721496647925,-2305.47,0.00013972,2]
[332740729,1721496647935,-542.29,0.00013972,2]
[332740730,1721496647944,-2780.97,0.00013972,2]
[332740731,1721496647954,-500.0,0.00013972,2]
[332740732,1721496647963,-500.0,0.00013972,2]
[332740733,1721496647972,-752.88,0.00013972,2]
[332740734,1721496647981,-500.0,0.00013972,2]
[332740735,1721496647991,-500.0,0.00013972,2]
[332740736,1721496648000,-500.0,0.00013972,2]
[332740737,1721496648009,-500.0,0.00013972,2]